lending/lending_fUSD_20240219
["ID","MTS","AMOUNT","RATE_DAILY","PERIOD"]
[314507577,1708378266433,-500.0,0.00047671,30]
[314507578,1708378266443,-500.0,0.00047671,30]
[314507579,1708378266453,-736.93,0.00047671,30]
[314507580,1708378266462,-557.43,0.00047671,30]
[314507581,1708378266473,-960.56,0.00047671,30]
[314507582,1708378266482,-767.8,0.00047671,30]
[314507583,1708378266492,-694.18,0.00047671,30]
[314507584,1708378266503,-500.0,0.00047671,30]
[314507585,1708378266513,-615.5,0.00047671,30]
[314507586,1708378266523,-948.13,0.00047671,30]
[314507587,1708378266533,-500.0,0.00047671,30]
[314507588,1708378266543,-500.0,0.00047671,30]
[314507589,1708378266553,-329.34180179,0.00047671,30]
[314507590,1708378266562,-606.15,0.00047671,30]
[314507591,1708378266573,-1500.42,0.00047671,30]
[314507592,1708378266583,-500.0,0.00047671,30]
[314507593,1708378266593,-2154.3,0.00047671,30]
[314507594,1708378266602,-500.0,0.00047671,30]
[314507595,1708378266614,-500.0,0.00047671,30]
[314507596,1708378266624,-500.0,0.00047671,30]
[314507597,1708378266634,-1136.93,0.00047671,30]
[314507598,1708378266645,-618.37,0.00047671,30]
[314507599,1708378266655,-500.0,0.00047671,30]
[314507600,1708378266664,-500.0,0.00047671,30]
[314507601,1708378266673,-500.0,0.00047671,30]
[314507602,1708378266684,-730.88,0.00047671,30]
[314507603,1708378266693,-752.2,0.00047671,30]
[314507604,1708378266702,-539.17,0.00047671,30]
[314507605,1708378266712,-500.0,0.00047671,30]
[314507606,1708378266722,-500.0,0.00047671,30]
[314507607,1708378266731,-500.0,0.00047671,30]
[314507608,1708378266741,-622.72,0.00047671,30]
[314507609,1708378266751,-500.0,0.00047671,30]
[314507610,1708378266762,-500.0,0.00047671,30]
[314507611,1708378266773,-500.0,0.00047671,30]
[314507612,1708378266782,-500.0,0.00047671,30]
[314507613,1708378266791,-500.0,0.00047671,30]
[314507614,1708378266802,-500.0,0.00047671,30]
[314507615,1708378266811,-818.54,0.00047671,30]
[314507616,1708378266821,-4432.09,0.00047671,30]
[314507617,1708378266830,-620.54,0.00047671,30]
[314507618,1708378266841,-500.0,0.00047671,30]
[314507619,1708378266850,-603.0,0.00047671,30]
[314507620,1708378266860,-794.43,0.00047671,30]
[314507621,1708378266869,-500.0,0.00047671,30]
[314507622,1708378266879,-500.0,0.00047671,30]
[314507623,1708378266888,-686.83,0.00047671,30]
[314507624,1708378266900,-250.0,0.00047767,2]
[314507625,1708378266910,-151.022088,0.00047798,38]
[314507626,1708378266921,-576.14,0.00047866,2]
[314507627,1708378266930,-25902.494563,0.0004788,30]
[314507628,1708378266940,-10091.365379,0.0004788,30]
[314507629,1708378266950,-19274.698119,0.0004788,30]
[314507630,1708378266960,-360.0,0.00047882,12]
[314507631,1708378266969,-7238.28,0.000479,7]
[314507632,1708378266979,-150.06910513,0.00047912,30]
[314507633,1708378266989,-500.0,0.00047945,30]
[314507634,1708378266998,-500.0,0.00047945,30]
[314507635,1708378267008,-500.0,0.00047945,30]
[314507636,1708378267018,-537.49,0.00047945,30]
[314507637,1708378267027,-500.0,0.00047945,30]
[314507638,1708378267038,-500.0,0.00047945,30]
[314507639,1708378267048,-500.0,0.00047945,30]
[314507640,1708378267058,-500.0,0.00047945,30]
[314507641,1708378267070,-500.0,0.00047945,30]
[314507642,1708378267079,-500.0,0.00047945,30]
[314507643,1708378267089,-500.0,0.00047945,30]
[314507644,1708378267099,-500.0,0.00047945,30]
[314507645,1708378267111,-545.31952341,0.00047945,30]
[314507646,1708378267121,-500.0,0.00047945,30]
[314507647,1708378267131,-500.0,0.00047945,30]
[314507648,1708378267141,-500.0,0.00047945,30]
[314507649,1708378267152,-500.0,0.00047945,30]
[314507650,1708378267163,-500.0,0.00047945,30]
[314507651,1708378267174,-500.0,0.00047945,7]
[314507652,1708378267185,-500.0,0.00047945,30]
[314507653,1708378267195,-500.0,0.00047945,30]
[314507654,1708378267205,-500.0,0.00047945,30]
[314507655,1708378267215,-500.0,0.00047945,30]
[314507656,1708378267226,-500.0,0.00047945,30]
[314507657,1708378267236,-500.0,0.00047945,30]
[314507658,1708378267246,-500.0,0.00047945,30]
[314507659,1708378267255,-500.0,0.00047945,30]
[314507660,1708378267265,-500.0,0.00047945,30]
[314507661,1708378267275,-500.0,0.00047945,30]
[314507662,1708378267286,-500.0,0.00047945,30]
[314507663,1708378267295,-500.0,0.00047945,30]
[314507664,1708378267305,-500.0,0.00047945,30]
[314507665,1708378267315,-500.0,0.00047945,30]
[314507666,1708378267324,-500.0,0.00047945,30]
[314507667,1708378267334,-500.0,0.00047945,30]
[314507668,1708378267344,-500.0,0.00047945,30]
[314507669,1708378267354,-500.0,0.00047945,30]
[314507670,1708378267364,-296.12888591,0.00047945,30]
[314507671,1708378267374,-549.41,0.00047945,30]
[314507672,1708378267383,-500.0,0.00047945,2]
[314507673,1708378267392,-500.0,0.00047945,30]
[314507674,1708378267402,-500.0,0.00047945,30]
[314507675,1708378267411,-500.0,0.00047945,30]
[314507676,1708378267420,-500.0,0.00047945,30]
[314507677,1708378267430,-500.0,0.00047945,30]
[314507678,1708378267439,-500.0,0.00047945,30]
[314507679,1708378267448,-500.0,0.00047945,30]
[314507680,1708378267457,-500.0,0.00047945,30]
[314507681,1708378267467,-500.0,0.00047945,30]
[314507682,1708378267477,-500.0,0.00047945,30]
[314507683,1708378267487,-500.0,0.00047945,30]
[314507684,1708378267496,-590.53025185,0.00047945,30]
[314507685,1708378267505,-500.0,0.00047945,30]
[314507686,1708378267514,-500.0,0.00047945,30]
[314507687,1708378267524,-500.0,0.00047945,30]
[314507688,1708378267533,-500.0,0.00047945,30]
[314507689,1708378267543,-613.78,0.00047945,30]
[314507690,1708378267552,-500.0,0.00047945,30]
[314507691,1708378267562,-500.0,0.00047945,30]
[314507692,1708378267571,-500.0,0.00047945,30]
[314507693,1708378267580,-500.0,0.00047945,30]
[314507694,1708378267590,-500.0,0.00047945,30]
[314507695,1708378267599,-395.34576634,0.00047945,30]
[314507696,1708378267610,-500.0,0.00047945,30]
[314507697,1708378267619,-500.0,0.00047945,30]
[314507698,1708378267628,-500.0,0.00047945,30]
[314507699,1708378267638,-500.0,0.00047945,30]
[314507700,1708378267648,-500.0,0.00047945,30]
[314507701,1708378267657,-500.0,0.00047945,30]
[314507702,1708378267666,-500.0,0.00047945,30]
[314507703,1708378267804,-500.0,0.00047945,30]
[314507704,1708378267819,-500.0,0.00047945,30]
[314507705,1708378267829,-500.0,0.00047945,30]
[314507706,1708378267840,-500.0,0.00047945,30]
[314507707,1708378267850,-500.0,0.00047945,30]
[314507708,1708378267860,-500.0,0.00047945,30]
[314507709,1708378267869,-500.0,0.00047945,30]
[314507710,1708378267878,-500.0,0.00047945,30]
[314507711,1708378267888,-500.0,0.00047945,30]
[314507712,1708378267897,-500.0,0.00047945,30]
[314507713,1708378267908,-500.0,0.00047945,30]
[314507714,1708378267918,-500.0,0.00047945,30]
[314507715,1708378267927,-500.0,0.00047945,30]
[314507716,1708378267936,-277.77,0.00047945,30]
[314507717,1708378267949,-500.0,0.00047945,30]
[314507718,1708378267958,-500.0,0.00047945,30]
[314507719,1708378267967,-500.0,0.00047945,30]
[314507720,1708378267977,-500.0,0.00047945,30]
[314507721,1708378267986,-294.63270747,0.00047945,30]
[314507722,1708378267995,-500.0,0.00047945,30]
[314507723,1708378268005,-500.0,0.00047945,30]
[314507724,1708378268014,-634.93,0.00047945,30]
[314507725,1708378268024,-500.0,0.00047945,30]
[314507726,1708378268033,-631.84,0.00047945,30]
[314507727,1708378268042,-500.0,0.00047945,30]
[314507728,1708378268051,-500.0,0.00047945,30]
[314507729,1708378268061,-500.0,0.00047945,30]
[314507730,1708378268071,-500.0,0.00047945,30]
[314507731,1708378268081,-500.0,0.00047945,30]
[314507732,1708378268090,-500.0,0.00047945,30]
[314507733,1708378268099,-500.0,0.00047945,30]
[314507734,1708378268110,-500.0,0.00047945,30]
[314507735,1708378268120,-500.0,0.00047945,30]
[314507736,1708378268130,-500.0,0.00047945,30]
[314507737,1708378268139,-500.0,0.00047945,30]
[314507738,1708378268150,-500.0,0.00047945,30]
[314507739,1708378268159,-500.0,0.00047945,30]
[314507740,1708378268169,-500.0,0.00047945,30]
[314507741,1708378268179,-500.0,0.00047945,30]
[314507742,1708378268188,-500.0,0.00047945,30]
[314507743,1708378268197,-500.0,0.00047945,30]
[314507744,1708378268207,-500.0,0.00047945,30]
[314507745,1708378268217,-500.0,0.00047945,30]
[314507746,1708378268227,-500.0,0.00047945,30]
[314507747,1708378268236,-500.0,0.00047945,30]
[314507748,1708378268245,-500.0,0.00047945,30]
[314507749,1708378268255,-500.0,0.00047945,30]
[314507750,1708378268264,-500.0,0.00047945,30]
[314507751,1708378268274,-500.0,0.00047945,30]
[314507752,1708378268283,-500.0,0.00047945,30]
[314507753,1708378268293,-500.0,0.00047945,30]
[314507754,1708378268302,-500.0,0.00047945,30]
[314507755,1708378268311,-500.0,0.00047945,30]
[314507756,1708378268321,-612.02,0.00047945,30]
[314507757,1708378268330,-500.0,0.00047945,30]
[314507758,1708378268339,-500.0,0.00047945,30]
[314507759,1708378268349,-500.0,0.00047945,30]
[314507760,1708378268357,-500.0,0.00047945,30]
[314507761,1708378268367,-500.0,0.00047945,30]
[314507762,1708378268376,-500.0,0.00047945,30]
[314507763,1708378268385,-500.0,0.00047945,30]
[314507764,1708378268395,-500.0,0.00047945,30]
[314507765,1708378268404,-500.0,0.00047945,30]
[314507766,1708378268413,-500.0,0.00047945,30]
[314507767,1708378268423,-500.0,0.00047945,30]
[314507768,1708378268433,-500.0,0.00047945,30]
[314507769,1708378268442,-500.0,0.00047945,30]
[314507770,1708378268451,-150.0,0.00047945,30]
[314507771,1708378268460,-500.0,0.00047945,30]
[314507772,1708378268470,-500.0,0.00047945,30]
[314507773,1708378268479,-500.0,0.00047945,30]
[314507774,1708378268488,-500.0,0.00047945,30]
[314507775,1708378268497,-500.0,0.00047945,30]
[314507776,1708378268507,-500.0,0.00047945,30]
[314507777,1708378268516,-500.0,0.00047945,30]
[314507778,1708378268525,-500.0,0.00047945,30]
[314507779,1708378268535,-500.0,0.00047945,30]
[314507780,1708378268544,-500.0,0.00047945,30]
[314507781,1708378268553,-500.0,0.00047945,30]
[314507782,1708378268563,-500.0,0.00047945,30]
[314507783,1708378268572,-500.0,0.00047945,30]
[314507784,1708378268582,-500.0,0.00047945,30]
[314507785,1708378268591,-500.0,0.00047945,30]
[314507786,1708378268600,-500.0,0.00047945,30]
[314507787,1708378268610,-500.0,0.00047945,30]
[314507788,1708378268619,-500.0,0.00047945,30]
[314507789,1708378268628,-500.0,0.00047945,30]
[314507790,1708378268637,-500.0,0.00047945,30]
[314507791,1708378268647,-500.0,0.00047945,30]
[314507792,1708378268657,-500.0,0.00047945,30]
[314507793,1708378268666,-500.0,0.00047945,30]
[314507794,1708378268675,-500.0,0.00047945,30]
[314507795,1708378268684,-500.0,0.00047945,30]
[314507796,1708378268694,-500.0,0.00047945,30]
[314507797,1708378268703,-500.0,0.00047945,30]
[314507798,1708378268712,-500.0,0.00047945,30]
[314507799,1708378268721,-500.0,0.00047945,30]
[314507800,1708378268731,-551.99,0.00047945,30]
[314507801,1708378268740,-500.0,0.00047945,30]
[314507802,1708378268749,-500.0,0.00047945,30]
[314507803,1708378268763,-500.0,0.00047945,30]
[314507804,1708378268773,-500.0,0.00047945,30]
[314507805,1708378268782,-500.0,0.00047945,30]
[314507806,1708378268792,-500.0,0.00047945,30]
[314507807,1708378268802,-449.44999735,0.00047945,30]
[314507808,1708378268811,-501.96,0.00047945,30]
[314507809,1708378268820,-500.0,0.00047945,30]
[314507810,1708378268830,-500.0,0.00047945,30]
[314507811,1708378268841,-500.0,0.00047945,30]
[314507812,1708378268851,-1055.55,0.00047945,30]
[314507813,1708378268862,-500.0,0.00047945,30]
[314507814,1708378268871,-500.0,0.00047945,30]
[314507815,1708378268880,-500.0,0.00047945,30]
[314507816,1708378268890,-1053.87,0.00047945,30]
[314507817,1708378268901,-500.0,0.00047945,30]
[314507818,1708378268910,-885.63,0.00047945,30]
[314507819,1708378268919,-500.0,0.00047945,30]
[314507820,1708378268930,-500.0,0.00047945,30]
[314507821,1708378268939,-500.0,0.00047945,30]
[314507822,1708378268948,-550.03429579,0.00047945,30]
[314507823,1708378268958,-1946.34,0.00047945,30]
[314507824,1708378268967,-500.0,0.00047945,30]
[314507825,1708378268976,-500.0,0.00047945,30]
[314507826,1708378268986,-1181.82,0.00047945,30]
[314507827,1708378268995,-500.0,0.00047945,30]
[314507828,1708378269005,-500.0,0.00047945,30]
[314507829,1708378269014,-1706.97,0.00047945,30]
[314507830,1708378269023,-1056.83,0.00047945,30]
[314507831,1708378269032,-500.0,0.00047945,30]
[314507832,1708378269041,-8268.96,0.00047945,30]
[314507833,1708378269051,-500.0,0.00047945,2]
[314507834,1708378269060,-500.0,0.00047945,30]
[314507835,1708378269070,-500.0,0.00047945,30]
[314507836,1708378269087,-550.51,0.00047945,30]
[314507837,1708378269097,-500.0,0.00047945,30]
[314507838,1708378269107,-1596.86,0.00047945,30]
[314507839,1708378269118,-500.0,0.00047945,30]
[314507840,1708378269127,-1325.65,0.00047945,30]
[314507841,1708378269137,-713.28,0.00047945,30]
[314507842,1708378269146,-500.0,0.00047945,30]
[314507843,1708378269156,-695.11,0.00047945,30]
[314507844,1708378269165,-500.0,0.00047945,30]
[314507845,1708378269174,-2195.2,0.00047945,30]
[314507846,1708378269183,-1556.15,0.00047945,30]
[314507847,1708378269192,-947.74,0.00047945,30]
[314507848,1708378269202,-500.0,0.00047945,30]
[314507849,1708378269211,-500.0,0.00047945,30]
[314507850,1708378269221,-1791.71,0.00047945,30]
[314507851,1708378269230,-500.0,0.00047945,30]
[314507852,1708378269239,-3566.95,0.00047945,30]
[314507853,1708378269249,-393.51,0.00047945,30]
[314507854,1708378269259,-1316.43,0.00047945,30]
[314507855,1708378269269,-841.6,0.00047945,30]
[314507856,1708378269279,-500.0,0.00047945,30]
[314507857,1708378269289,-1280.74,0.00047945,30]
[314507858,1708378269299,-18426.89,0.00047945,30]
[314507859,1708378269308,-1010.76,0.00047945,30]
[314507860,1708378269317,-500.0,0.00047945,30]
[314507861,1708378269326,-885.16,0.00047945,30]
[314507862,1708378269335,-500.0,0.00047945,30]
[314507863,1708378269345,-500.0,0.00047945,30]
[314507864,1708378269354,-1538.6,0.00047945,30]
[314507865,1708378269364,-747.64,0.00047945,30]
[314507866,1708378269374,-1186.66,0.00047945,30]
[314507867,1708378269383,-946.11,0.00047945,30]
[314507868,1708378269392,-1095.22,0.00047945,30]
[314507869,1708378269402,-500.0,0.00047945,30]
[314507870,1708378269411,-500.0,0.00047945,30]
[314507871,1708378269420,-536.42,0.00047945,30]
[314507872,1708378269429,-500.0,0.00047945,30]
[314507873,1708378269439,-1136.16,0.00047945,30]
[314507874,1708378269448,-6609.47,0.00047945,30]
[314507875,1708378269457,-1468.29,0.00047945,30]
[314507876,1708378269466,-500.0,0.00047945,30]
[314507877,1708378269475,-500.0,0.00047945,30]
[314507878,1708378269485,-500.0,0.00047945,30]
[314507879,1708378269495,-668.15,0.00047945,30]
[314507880,1708378269505,-929.27,0.00047945,30]
[314507881,1708378269514,-500.0,0.00047945,30]
[314507882,1708378269523,-634.08,0.00047945,30]
[314507883,1708378269532,-500.0,0.00047945,30]
[314507884,1708378269541,-896.45,0.00047945,30]
[314507885,1708378269549,-500.0,0.00047945,30]
[314507886,1708378269558,-500.0,0.00047945,30]
[314507887,1708378269567,-1328.4,0.00047945,30]
[314507888,1708378269576,-781.17,0.00047945,30]
[314507889,1708378269586,-500.0,0.00047945,30]
[314507890,1708378269595,-808.14,0.00047945,30]
[314507891,1708378269605,-2516.47,0.00047945,30]
[314507892,1708378269615,-652.17,0.00047945,30]
[314507893,1708378269625,-567.06,0.00047945,30]
[314507894,1708378269634,-721.84,0.00047945,30]
[314507895,1708378269644,-305.89817229,0.00047945,30]
[314507896,1708378269653,-500.0,0.00047945,30]
[314507897,1708378269662,-5232.16,0.00047945,30]
[314507898,1708378269671,-827.49,0.00047945,30]
[314507899,1708378269680,-509.98,0.00047945,30]
[314507900,1708378269689,-500.0,0.00047945,30]
[314507901,1708378269698,-676.76,0.00047945,30]
[314507902,1708378269707,-500.0,0.00047945,30]
[314507903,1708378269716,-500.0,0.00047945,30]
[314507904,1708378269725,-627.95,0.00047945,30]
[314507905,1708378269734,-500.0,0.00047945,30]
[314507906,1708378269743,-931.02,0.00047945,30]
[314507907,1708378269753,-500.0,0.00047945,30]
[314507908,1708378269762,-500.0,0.00047945,30]
[314507909,1708378269775,-2919.49,0.00047945,30]
[314507910,1708378269785,-770.48,0.00047945,30]
[314507911,1708378269794,-1508.0,0.00047945,30]
[314507912,1708378269802,-500.0,0.00047945,30]
[314507913,1708378269812,-667.93,0.00047945,30]
[314507914,1708378269821,-2082.95,0.00047945,30]
[314507915,1708378269830,-879.08,0.00047945,30]
[314507916,1708378269839,-2826.01,0.00047945,30]
[314507917,1708378269850,-500.0,0.00047945,30]
[314507918,1708378269859,-754.56,0.00047945,30]
[314507919,1708378270087,-682.03,0.00047945,30]
[314507920,1708378270133,-500.0,0.00047945,30]
[314507921,1708378270143,-500.0,0.00047945,30]
[314507922,1708378270153,-935.53,0.00047945,30]
[314507923,1708378270162,-500.0,0.00047945,30]
[314507924,1708378270171,-500.0,0.00047945,30]
[314507925,1708378270181,-681.27,0.00047945,30]
[314507926,1708378270190,-621.53,0.00047945,30]
[314507927,1708378270200,-500.0,0.00047945,30]
[314507928,1708378270210,-500.0,0.00047945,30]
[314507929,1708378270219,-2727.92,0.00047945,30]
[314507930,1708378270229,-3736.72,0.00047945,30]
[314507931,1708378270238,-2391.1,0.00047945,30]
[314507932,1708378270248,-500.0,0.00047945,30]
[314507933,1708378270258,-911.34,0.00047945,30]
[314507934,1708378270267,-500.0,0.00047945,30]
[314507935,1708378270277,-1344.48,0.00047945,30]
[314507936,1708378270287,-621.49,0.00047945,30]
[314507937,1708378270296,-1570.11,0.00047945,30]
[314507938,1708378270306,-500.0,0.00047945,30]
[314507939,1708378270315,-1652.53,0.00047945,30]
[314507940,1708378270325,-3859.16,0.00047945,30]
[314507941,1708378270334,-663.1,0.00047945,30]
[314507942,1708378270343,-985.06,0.00047945,30]
[314507943,1708378270353,-500.0,0.00047945,30]
[314507944,1708378270363,-852.41,0.00047945,30]
[314507945,1708378270372,-500.0,0.00047945,30]
[314507946,1708378270382,-996.52,0.00047945,30]
[314507947,1708378270392,-1485.86,0.00047945,30]
[314507948,1708378270402,-798.22,0.00047945,30]
[314507949,1708378270411,-500.0,0.00047945,30]
[314507950,1708378270421,-568.62,0.00047945,30]
[314507951,1708378270430,-1191.69,0.00047945,30]
[314507952,1708378270440,-5758.48,0.00047945,30]
[314507953,1708378270449,-805.12,0.00047945,30]
[314507954,1708378270459,-500.0,0.00047945,30]
[314507955,1708378270469,-500.0,0.00047945,30]
[314507956,1708378270478,-736.93,0.00047945,30]
[314507957,1708378270488,-557.43,0.00047945,30]
[314507958,1708378270498,-960.56,0.00047945,30]
[314507959,1708378270508,-767.8,0.00047945,30]
[314507960,1708378270517,-500.0,0.00047945,30]
[314507961,1708378270526,-615.5,0.00047945,30]
[314507962,1708378270535,-948.13,0.00047945,30]
[314507963,1708378270545,-694.18,0.00047945,30]
[314507964,1708378270554,-385.72,0.00047945,30]
[314507965,1708378270564,-606.15,0.00047945,30]
[314507966,1708378270573,-1500.42,0.00047945,30]
[314507967,1708378270583,-500.0,0.00047945,30]
[314507968,1708378270592,-500.0,0.00047945,30]
[314507969,1708378270601,-2154.3,0.00047945,30]
[314507970,1708378270610,-500.0,0.00047945,30]
[314507971,1708378270620,-500.0,0.00047945,30]
[314507972,1708378270629,-500.0,0.00047945,30]
[314507973,1708378270639,-1136.93,0.00047945,30]
[314507974,1708378270648,-618.37,0.00047945,30]
[314507975,1708378270658,-500.0,0.00047945,30]
[314507976,1708378270667,-500.0,0.00047945,30]
[314507977,1708378270676,-500.0,0.00047945,30]
[314507978,1708378270685,-730.88,0.00047945,30]
[314507979,1708378270695,-752.2,0.00047945,30]
[314507980,1708378270704,-539.17,0.00047945,30]
[314507981,1708378270713,-500.0,0.00047945,30]
[314507982,1708378270723,-500.0,0.00047945,30]
[314507983,1708378270732,-500.0,0.00047945,30]
[314507984,1708378270741,-622.72,0.00047945,30]
[314507985,1708378270751,-500.0,0.00047945,30]
[314507986,1708378270760,-500.0,0.00047945,30]
[314507987,1708378270773,-500.0,0.00047945,30]
[314507988,1708378270783,-500.0,0.00047945,30]
[314507989,1708378270793,-500.0,0.00047945,30]
[314507990,1708378270803,-500.0,0.00047945,30]
[314507991,1708378270812,-818.54,0.00047945,30]
[314507992,1708378270821,-4432.09,0.00047945,30]
[314507993,1708378270831,-620.54,0.00047945,30]
[314507994,1708378270841,-500.0,0.00047945,30]
[314507995,1708378270852,-603.0,0.00047945,30]
[314507996,1708378270862,-794.43,0.00047945,30]
[314507997,1708378270872,-500.0,0.00047945,30]
[314507998,1708378270881,-500.0,0.00047945,30]
[314507999,1708378270891,-200.0,0.00047987,75]
[314508000,1708378270901,-200.0,0.00047987,74]
[314508001,1708378270910,-332.3930476,0.00048,30]
[314508002,1708378270919,-240.8,0.00048,7]
[314508003,1708378270929,-317.0,0.00048,38]
[314508004,1708378270938,-482.64865978,0.00048,30]
[314508005,1708378270948,-7000.0,0.00048,5]
[314508006,1708378270957,-298.26103291,0.00048,30]
[314508007,1708378270968,-9052.31110422,0.00048,30]
[314508008,1708378270978,-500.0,0.00048,14]
[314508009,1708378270987,-500.0,0.00048,14]
[314508010,1708378270997,-500.0,0.00048,14]
[314508011,1708378271007,-500.0,0.00048,14]
[314508012,1708378271017,-500.0,0.00048,22]
[314508013,1708378271027,-729.05478112,0.00048,30]
[314508014,1708378271037,-174.51283469,0.00048,30]
[314508015,1708378271046,-206.0,0.00048072,36]
[314508016,1708378271056,-154.0583357,0.000481,30]
[314508017,1708378271065,-363.94,0.0004812,2]
[314508018,1708378271075,-151.022088,0.00048198,42]
[314508019,1708378271085,-152.5135901,0.00048213,30]
[314508020,1708378271094,-500.0,0.00048219,30]
[314508021,1708378271104,-500.0,0.00048219,30]
[314508022,1708378271114,-500.0,0.00048219,30]
[314508023,1708378271123,-243.56,0.00048219,30]
[314508024,1708378271132,-500.0,0.00048219,30]
[314508025,1708378271141,-500.0,0.00048219,30]
[314508026,1708378271150,-500.0,0.00048219,30]
[314508027,1708378271159,-500.0,0.00048219,30]
[314508028,1708378271169,-500.0,0.00048219,30]
[314508029,1708378271178,-500.0,0.00048219,30]
[314508030,1708378271188,-500.0,0.00048219,30]
[314508031,1708378271197,-500.0,0.00048219,30]
[314508032,1708378271206,-500.0,0.00048219,30]
[314508033,1708378271216,-500.0,0.00048219,30]
[314508034,1708378271226,-500.0,0.00048219,30]
[314508035,1708378271235,-500.0,0.00048219,30]
[314508036,1708378271245,-500.0,0.00048219,7]
[314508037,1708378271255,-500.0,0.00048219,30]
[314508038,1708378271265,-500.0,0.00048219,30]
[314508039,1708378271275,-500.0,0.00048219,30]
[314508040,1708378271284,-616.23640094,0.00048219,30]
[314508041,1708378271294,-202.53921033,0.00048219,30]
[314508042,1708378271305,-500.0,0.00048219,30]
[314508043,1708378271315,-500.0,0.00048219,30]
[314508044,1708378271324,-500.0,0.00048219,30]
[314508045,1708378271333,-500.0,0.00048219,30]
[314508046,1708378271343,-500.0,0.00048219,30]
[314508047,1708378271352,-500.0,0.00048219,30]
[314508048,1708378271362,-500.0,0.00048219,30]
[314508049,1708378271372,-500.0,0.00048219,30]
[314508050,1708378271382,-500.0,0.00048219,30]
[314508051,1708378271392,-500.0,0.00048219,30]
[314508052,1708378271401,-500.0,0.00048219,30]
[314508053,1708378271410,-500.0,0.00048219,30]
[314508054,1708378271420,-500.0,0.00048219,30]
[314508055,1708378271430,-549.41,0.00048219,30]
[314508056,1708378271439,-500.0,0.00048219,2]
[314508057,1708378271449,-500.0,0.00048219,30]
[314508058,1708378271458,-500.0,0.00048219,30]
[314508059,1708378271468,-500.0,0.00048219,30]
[314508060,1708378271478,-500.0,0.00048219,30]
[314508061,1708378271487,-500.0,0.00048219,30]
[314508062,1708378271497,-325.93,0.00048219,30]
[314508063,1708378271507,-500.0,0.00048219,30]
[314508064,1708378271516,-500.0,0.00048219,30]
[314508065,1708378271525,-500.0,0.00048219,30]
[314508066,1708378271534,-183.25696399,0.00048219,30]
[314508067,1708378271543,-500.0,0.00048219,30]
[314508068,1708378271553,-500.0,0.00048219,30]
[314508069,1708378271563,-500.0,0.00048219,30]
[314508070,1708378271573,-500.0,0.00048219,30]
[314508071,1708378271583,-500.0,0.00048219,30]
[314508072,1708378271592,-613.78,0.00048219,30]
[314508073,1708378271602,-500.0,0.00048219,30]
[314508074,1708378271611,-500.0,0.00048219,30]
[314508075,1708378271621,-500.0,0.00048219,30]
[314508076,1708378271630,-500.0,0.00048219,30]